Cogmind - Beta 11.1 @@@ ROGUE MODE // 2022.08.01 @ 02:58:38 Player: T-900 Result: Destroyed by Y-64 Sentinel with KE Penetrator Performance ------------- Evolutions (5) 2500 Regions Visited (7) 1400 Robots Destroyed (65) 325 Value Destroyed (2053) 2053 Prototype IDs (0) 0 Alien Tech Used (0) 0 Bonus (244) 244 TOTAL SCORE: 6522 Bonus ------- Pacifist 200 High Alert Combat Kills 44 Cogmind --------- Core Integrity 0/1000 Matter 436/550 Energy 100/100 System Corruption 0% Temperature Cool (9) Movement Walking (120) Location -5/Extension Parts ------- > --- POWER (2) -------- (None) > --- PROPULSION (4) --- Carbon-fiber Leg > --- UTILITY (7) ------ Matter Compressor Targeting Computer Improved Recalibrator > --- WEAPON (4) ------- (None) > --- INVENTORY (5) ---- Armored Treads Field Laser Peak State ------------ > --- POWER ------------ Deuterium Engine Fission Core > --- PROPULSION ------- Light Treads VSS Leg Improved Carbon-fiber Leg Improved Carbon-fiber Leg > --- UTILITY ---------- Medium Storage Unit Matter Compressor Targeting Computer Targeting Computer Drone Bay > --- WEAPON ----------- Shock Rifle Gauss Rifle Gauss Rifle > --- INVENTORY -------- Armored Treads Armored Treads Armored Wheel Cryofiber Web Improved Heat Sink Particle Gun Heavy Assault Rifle Heavy Assault Rifle Minigun Grenade Launcher [Rating: 46] Favorites ----------- Power Light Ion Engine Engine Light Ion Engine Power Core Fission Core Propulsion Improved Carbon-fiber Leg Treads Light Treads Leg Improved Carbon-fiber Leg Wheel Compact Wheel Utility Targeting Computer Device Drone Bay Storage Medium Storage Unit Processor Targeting Computer Protection Light Armor Plating Weapon Gauss Rifle Energy Gun Shock Rifle Energy Cannon Heavy Particle Cannon Ballistic Gun Gauss Rifle Ballistic Cannon Enhanced Gauss Cannon Launcher Grenade Launcher Build | -11 -10 -9 -8 -7 -6 -5 -5 ------- Run | Scr Mat Mat Mat Fac Fac Fac Ext Slots Evolved 10 | . . 2 2 2 2 2 . Power 1 | . . . . . . 1 . Propulsion 2 | . . 1 1 . . . . Utility 5 | . . 1 . 1 2 1 . Weapon 2 | . . . 1 1 . . . Parts Attached 72 | 7 1 3 28 . 4 21 8 Power 9 | 1 . 1 5 . . 2 . Engine 6 | 1 . 1 4 . . . . Core 3 | . . . 1 . . 2 . Reactor . | . . . . . . . . Propulsion 29 | 3 . . 13 . 1 10 2 Treads 6 | 1 . . 2 . . 3 . Leg 18 | . . . 10 . 1 5 2 Wheel 5 | 2 . . 1 . . 2 . Hover . | . . . . . . . . Flight . | . . . . . . . . Utility 13 | 1 1 1 2 . 2 2 4 Device 5 | . . . . . 1 1 3 Storage 3 | 1 . . 1 . 1 . . Processor 4 | . . 1 1 . . 1 1 Hackware . | . . . . . . . . Protection 1 | . 1 . . . . . . Artifact . | . . . . . . . . Weapon 21 | 2 . 1 8 . 1 7 2 Energy Gun 4 | . . . . . 1 3 . Energy Cannon 1 | . . . 1 . . . . Ballistic Gun 14 | 2 . 1 7 . . 3 1 Ballistic Cannon 1 | . . . . . . 1 . Launcher 1 | . . . . . . . 1 Special Weapon . | . . . . . . . . Impact Weapon . | . . . . . . . . Slashing Weapon . | . . . . . . . . Piercing Weapon . | . . . . . . . . Special Melee Weapon . | . . . . . . . . Unidentified Prototypes . | . . . . . . . . Parts Lost 44 | . . 3 10 . . 25 6 Power 4 | . . 1 2 . . 1 . Propulsion 19 | . . . 7 . . 10 2 Utility 9 | . . 1 . . . 6 2 Weapon 12 | . . 1 1 . . 8 2 Highest Loss Streak 14 | . . 2 2 . . 14 4 To Critical Strikes . | . . . . . . . . Average Slot Usage (%) 77 | . 89 85 90 69 79 55 31 Engine 6 | . 14 10 7 7 6 . . Treads 3 | . . . 4 7 6 3 . Leg 15 | . . . 21 15 17 12 12 Wheel 5 | . 28 22 5 . . 1 . Device 2 | . . . . . 5 4 4 Storage 10 | . 14 11 9 7 12 10 5 Processor 12 | . . 10 16 15 13 6 3 Protection 1 | . 4 9 . . . . . Energy Gun 1 | . . . . . 3 4 . Energy Cannon 2 | . . . 6 . . . . Ballistic Gun 14 | . 28 21 17 15 13 6 3 Naked Turns . | . . . . . . . . Heaviest Build 42 | 12 15 15 34 27 41 42 16 Greatest Support 55 | 26 26 26 54 36 48 55 45 Greatest Overweight (x) 1 | 1 . . 1 . 1 1 . Average Overweight (x) . | . . . . . . . . Largest Inventory Capacity 10 | 8 8 8 10 10 10 10 5 Average Capacity 9 | 6 8 8 9 10 10 9 5 Most Carried 10 | 7 7 8 10 10 10 10 5 Average Carried 8 | 5 6 7 8 10 9 8 2 Final Capacity 10 | 8 8 8 10 10 10 5 5 Final Carried 10 | 6 6 8 10 10 10 5 2 Class Distribution -------------------- 57% | Scavenger-Mutant 42% | Mutant Dominant Class ---------------- Mutant | -10/Materials Mutant | -9/Materials Mutant | -8/Materials Scavenger-Mutant | -7/Factory Scavenger-Mutant | -6/Factory Scavenger-Mutant | -5/Factory Scavenger-Mutant | -5/Extension Resources | -11 -10 -9 -8 -7 -6 -5 -5 ----------- Run | Scr Mat Mat Mat Fac Fac Fac Ext Matter Collected 1954 | 270 . 252 757 . 103 518 54 Remotely . | . . . . . . . . Salvage Created 2518 | . . 378 1364 . 103 584 89 Parts 162 | . . 25 94 . 9 30 4 Haulers Intercepted 1 | . . . 1 . . . . Recyclers Shooed 5 | . . 1 3 . . 1 . Parts Field Recycled . | . . . . . . . . Retrieved Matter . | . . . . . . . . Parts Self-Destructed . | . . . . . . . . Prevented . | . . . . . . . . Kills | -11 -10 -9 -8 -7 -6 -5 -5 ------- Run | Scr Mat Mat Mat Fac Fac Fac Ext Combat Hostiles Destroyed 57 | . . 14 31 . 2 8 2 Guns 55 | . . 14 31 . 2 7 1 AOE 2 | . . . . . . 1 1 Classes Destroyed 12 | . . 2 6 . 1 1 2 Worker 3 | . . . 1 . . 2 . Hauler 1 | . . . 1 . . . . Recycler 2 | . . . 2 . . . . Operator 1 | . . . . . . . 1 Watcher 1 | . . . 1 . . . . Swarmer 22 | . . 8 14 . . . . Grunt 21 | . . 6 9 . . 6 . Duelist 2 | . . . . . . 2 . Sentry 5 | . . . 4 . 1 . . Specialist 4 | . . . 4 . . . . Hunter 2 | . . . . . . . 2 Programmer 1 | . . . . . 1 . . Best Kill Streak 5 | . . 4 5 . 1 5 3 Combat Bots Only 5 | . . 4 5 . 1 4 2 Max Kills in Single Turn 1 | . . 1 1 . 1 1 1 Gunslinging . | . . . . . . . . Exploded 1 | . . . . . . 1 1 Melee . | . . . . . . . . Uniques/NPCs Destroyed . | . . . . . . . . Combat | -11 -10 -9 -8 -7 -6 -5 -5 -------- Run | Scr Mat Mat Mat Fac Fac Fac Ext Damage Taken 6808 | . . 427 1967 . 334 3380 700 Core 1458 | . . 81 292 . 65 785 235 Absorbed by Shields . | . . . . . . . . Core Remaining (%) 86 | 100 100 79 46 100 92 . . Volleys Fired 205 | . . 39 111 . 10 36 9 Largest 3 | . . 2 3 . 2 3 1 Hottest 140 | . . 40 115 . 56 140 30 Shots Fired 380 | . . 74 216 . 21 60 9 Gun 364 | . . 74 214 . 21 51 4 Cannon 11 | . . . 2 . . 9 . Launcher 5 | . . . . . . . 5 Special . | . . . . . . . . Kinetic 360 | . . 74 214 . 21 47 4 Thermal 12 | . . . 2 . . 10 . Explosive 5 | . . . . . . . 5 Electromagnetic 3 | . . . . . . 3 . Robot Hit Streak 31 | . . 8 31 . 10 6 8 Robot Miss Streak 6 | . . 4 3 . 2 6 4 Penetration Max 1 | . . . 1 . . 1 . Secondary Targets 1 | . . . 1 . . . . Max Gunslinging Chain 1 | . . . 1 . . . . Shots Hit Robots 259 | . . 50 157 . 16 28 8 Core Hits 144 | . . 20 73 . 5 37 9 Critical Kills 1 | . . . . . . 1 . Critical Parts Destroyed 1 | . . . 1 . . . . Critical Strikes 4 | . . . 1 . . 3 . Burn 1 | . . . . . . 1 . Destroy 2 | . . . 1 . . 1 . Blast 1 | . . . . . . 1 . Melee Attacks . | . . . . . . . . Impact . | . . . . . . . . Slashing . | . . . . . . . . Piercing . | . . . . . . . . Sneak Attacks . | . . . . . . . . Combat Hostiles . | . . . . . . . . Follow-up Attacks . | . . . . . . . . Damage Inflicted 4249 | . . 664 2002 . 325 910 348 Guns 3498 | . . 664 1977 . 325 455 77 Cannons 151 | . . . 25 . . 126 . Explosions 600 | . . . . . . 329 271 Melee . | . . . . . . . . Ramming . | . . . . . . . . Kinetic 3540 | . . 664 1977 . 325 497 77 Thermal 109 | . . . 25 . . 84 . Explosive 271 | . . . . . . . 271 Electromagnetic 329 | . . . . . . 329 . Impact . | . . . . . . . . Slashing . | . . . . . . . . Piercing . | . . . . . . . . Highest Corruption 1 | . . . . . 1 . . Average Corruption 1 | . . . . . 1 . . Corruption Purged . | . . . . . . . . Corruption Blocked . | . . . . . . . . Effects 4 | . . . . . 4 . . Matter Fused 1 | . . . . . 1 . . Data Loss (minor) 2 | . . . . . 2 . . Misfires 1 | . . . . . 1 . . Overload Shots . | . . . . . . . . Overflow Damage 3 | . . . . . . 3 . Projectiles . | . . . . . . . . Explosions 3 | . . . . . . 3 . Melee . | . . . . . . . . Knockbacks 3 | . . . . . . 3 . Impact . | . . . . . . . . Kinetic 3 | . . . . . . 3 . Secondary . | . . . . . . . . Self-Inflicted Damage 149 | . . . . . . 132 17 Shots 5 | . . . . . . 4 1 Rammed . | . . . . . . . . Targets Rammed 1 | . . . . . . 1 . Kicked 1 | . . . . . . 1 . Crushed . | . . . . . . . . Highest Temperature 60 | . . 12 60 . 5 57 . Average Temperature 12 | . . 8 9 . 5 15 . Received Heat Transfer 1882 | . . 96 657 . 84 1009 36 Siege Activations . | . . . . . . . . Robots Corrupted . | . . . . . . . . Combat Hostiles . | . . . . . . . . Parts Fried . | . . . . . . . . Impact Corruptions . | . . . . . . . . Robots Melted . | . . . . . . . . Combat Hostiles . | . . . . . . . . Parts Melted . | . . . . . . . . Heat Transferred 296 | . . . 37 . . 259 . Parts Sabotaged 3 | . . . . . . 3 . Parts Stolen . | . . . . . . . . Parts Stripped . | . . . . . . . . Power Chain Reactions 1 | . . . . . . 1 . Missiles Intercepted . | . . . . . . . . Alert | -11 -10 -9 -8 -7 -6 -5 -5 ------- Run | Scr Mat Mat Mat Fac Fac Fac Ext Peak Influence 459 | . . 240 459 208 146 250 177 Initial 208 | . . . 53 208 101 29 83 Average 178 | . . 94 301 208 64 130 146 Maximum Alert Level 2 | . . 1 2 1 . 1 . Low Security (%) 56 | 100 100 74 18 . 100 66 100 Level 1 34 | . . 25 59 100 . 33 . Level 2 8 | . . . 22 . . . . Level 3 . | . . . . . . . . Level 4 . | . . . . . . . . Level 5 . | . . . . . . . . High Security . | . . . . . . . . Max Security . | . . . . . . . . Squads Dispatched 12 | . . 2 5 . 2 2 1 Investigation 1 | . . . 1 . . . . Extermination 1 | . . . . . 1 . . Reinforcement 9 | . . 2 4 . 1 1 1 Assault 1 | . . . . . . 1 . Garrison . | . . . . . . . . Intercept . | . . . . . . . . Searches Triggered . | . . . . . . . . Construction Impeded 1 | . . . . . . 1 . Haulers Reinforced . | . . . . . . . . Active Scanning Responses . | . . . . . . . . Cargo Convoy Interrupts . | . . . . . . . . Stealth | -11 -10 -9 -8 -7 -6 -5 -5 --------- Run | Scr Mat Mat Mat Fac Fac Fac Ext Distress Signals 3 | . . . 3 . . . . Communications Jammed . | . . . . . . . . Distress Signals . | . . . . . . . . Times Spotted 115 | . . 21 46 . 3 39 6 Peak Tracking Total 8 | . . 5 8 . 1 8 3 Tactical Retreats 10 | . . 1 4 . . 5 . Traps | -11 -10 -9 -8 -7 -6 -5 -5 ------- Run | Scr Mat Mat Mat Fac Fac Fac Ext Traps Triggered 4 | . . . 1 . . 2 1 Indirectly . | . . . . . . . . Trap Hack Attempts . | . . . . . . . . Triggered . | . . . . . . . . Disarmed . | . . . . . . . . Reprogrammed . | . . . . . . . . Reused . | . . . . . . . . Traps Extracted . | . . . . . . . . Installed . | . . . . . . . . Triggered . | . . . . . . . . Machines | -11 -10 -9 -8 -7 -6 -5 -5 ---------- Run | Scr Mat Mat Mat Fac Fac Fac Ext Machines Disabled 5 | . . . . . 1 4 . Max in Single Turn 4 | . . . . . 1 4 . Garrison Access 1 | . . . . . . 1 . Energy Cycler 2 | . . . . . . . 2 Machines Sabotaged . | . . . . . . . . Garrisons Compromised . | . . . . . . . . Overloaded Fab Kills . | . . . . . . . . Hacking | -11 -10 -9 -8 -7 -6 -5 -5 --------- Run | Scr Mat Mat Mat Fac Fac Fac Ext Machines Accessed . | . . . . . . . . Terminals . | . . . . . . . . Fabricators . | . . . . . . . . Repair Stations . | . . . . . . . . Recycling Units . | . . . . . . . . Scanalyzers . | . . . . . . . . Garrison Access . | . . . . . . . . Total Hacks . | . . . . . . . . Successful . | . . . . . . . . Failed . | . . . . . . . . Catastrophic . | . . . . . . . . Database Lockouts . | . . . . . . . . Manual . | . . . . . . . . Terminals . | . . . . . . . . Fabricators . | . . . . . . . . Repair Stations . | . . . . . . . . Recycling Units . | . . . . . . . . Scanalyzers . | . . . . . . . . Garrison Access . | . . . . . . . . Terminal Hacks . | . . . . . . . . Fabricator Hacks . | . . . . . . . . Repair Station Hacks . | . . . . . . . . Recycling Unit Hacks . | . . . . . . . . Scanalyzer . | . . . . . . . . Garrison Access Hacks . | . . . . . . . . Unauthorized Hacks . | . . . . . . . . Terminals . | . . . . . . . . Fabricators . | . . . . . . . . Repair Stations . | . . . . . . . . Recycling Units . | . . . . . . . . Scanalyzers . | . . . . . . . . Garrison Access . | . . . . . . . . Data Cores Recovered . | . . . . . . . . Used . | . . . . . . . . Hacking Detections . | . . . . . . . . Full Trace Events . | . . . . . . . . Feedback Events . | . . . . . . . . Feedback Blocked . | . . . . . . . . Robot Schematics Acquired . | . . . . . . . . Robots Built . | . . . . . . . . Authchips . | . . . . . . . . Time . | . . . . . . . . Total Robot Build Rating . | . . . . . . . . Part Schematics Acquired . | . . . . . . . . Parts Built . | . . . . . . . . Authchips . | . . . . . . . . Time . | . . . . . . . . Total Part Build Rating . | . . . . . . . . Parts Repaired . | . . . . . . . . Time . | . . . . . . . . Parts Recycled . | . . . . . . . . Recycled Matter . | . . . . . . . . Retrieved Matter . | . . . . . . . . Retrieved Components . | . . . . . . . . Parts Scanalyzed . | . . . . . . . . Part Schematics Acquired . | . . . . . . . . Parts Damaged . | . . . . . . . . Bothacking | -11 -10 -9 -8 -7 -6 -5 -5 ------------ Run | Scr Mat Mat Mat Fac Fac Fac Ext Used RIF Installer . | . . . . . . . . Robots Hacked . | . . . . . . . . Non-combat . | . . . . . . . . Combat . | . . . . . . . . Robot Hacks Applied . | . . . . . . . . Relay Couplers Released 2 | . . . . . . 2 . Machine Destruction 2 | . . . . . . 2 . Fabnet Peak Effective % . | . . . . . . . . Robots Rewired . | . . . . . . . . Allies Hacked . | . . . . . . . . Hacks Repelled . | . . . . . . . . Allies | -11 -10 -9 -8 -7 -6 -5 -5 -------- Run | Scr Mat Mat Mat Fac Fac Fac Ext Total Allies 1 | . . . . . . . 1 Largest Group 1 | . . . . . . . 1 Highest-Rated Group 20 | . . . . . . . 20 Highest-Rated Ally 20 | . . . . . . . 20 Total Orders . | . . . . . . . . Ally Attacks . | . . . . . . . . Total Damage . | . . . . . . . . Kills . | . . . . . . . . Allies Corrupted . | . . . . . . . . Allies Melted . | . . . . . . . . Intel | -11 -10 -9 -8 -7 -6 -5 -5 ------- Run | Scr Mat Mat Mat Fac Fac Fac Ext Robot Analysis Total . | . . . . . . . . Derelict Logs Recovered . | . . . . . . . . Drone Launches 2 | . . . . . 2 . . Drone Recoveries . | . . . . . . . . Exploration | -11 -10 -9 -8 -7 -6 -5 -5 ------------- Run | Scr Mat Mat Mat Fac Fac Fac Ext Turns Passed 3759 | 68 67 436 1509 39 760 702 178 Spaces Moved 2300 | 67 73 278 827 33 447 453 122 Core 26 | 26 . . . . . . . Treads 37 | . . . . . . 37 . Legs 1576 | . . . 625 33 447 349 122 Wheels 661 | 41 73 278 202 . . 67 . Hover . | . . . . . . . . Flight . | . . . . . . . . Fastest Speed 50 | 50 90 90 90 120 110 85 120 Average Speed 114 | 76 90 90 117 120 132 115 120 Slowest Speed 250 | 100 90 90 190 120 190 250 120 Overloaded Moves . | . . . . . . . . Propulsion Burnouts . | . . . . . . . . Robots Hopped . | . . . . . . . . Cave-ins Triggered . | . . . . . . . . Exploration Rate (%) 21 | 4 18 29 71 2 14 11 23 Regions Visited 7 Branch Regions 1 Pre-discovered Areas . | . . . . . . . . Known Exits Taken . | . . . . . . . . Unknown Exits Taken 7 | 1 1 1 1 1 1 1 . Scrap Searched . | . . . . . . . . Spaces Dug . | . . . . . . . . Terrain Destroyed 49 | . . . 2 . . 8 39 Melee . | . . . . . . . . Projectile 7 | . . . 2 . . 5 . AOE 42 | . . . . . . 3 39 Terrain Rammed . | . . . . . . . . Walls Destroyed . | . . . . . . . . Machines Disabled . | . . . . . . . . Actions | -11 -10 -9 -8 -7 -6 -5 -5 --------- Run | Scr Mat Mat Mat Fac Fac Fac Ext Total 3065 | 82 74 388 1176 32 593 576 144 Wait 408 | . . 66 160 . 132 50 . Move 2293 | 66 72 277 826 32 446 452 122 Hop . | . . . . . . . . Pick Up 61 | 8 1 3 28 . 1 15 5 Fast Attach 19 | 4 . 2 6 . 3 4 . Attach 46 | 3 1 1 15 . 1 17 8 Detach 1 | 1 . . . . . . . Swap 7 | . . . 7 . . . . Drop 24 | . . . 23 . . 1 . Fire 205 | . . 39 111 . 10 36 9 Melee . | . . . . . . . . Ram . | . . . . . . . . Kick 1 | . . . . . . 1 . Crush . | . . . . . . . . Escape Stasis . | . . . . . . . . Rewire . | . . . . . . . . Trap . | . . . . . . . . Miscellaneous . | . . . . . . . . Route ------- -11/Scrapyard -10/Materials -9/Materials -8/Materials -7/Factory -6/Factory -5/Factory -5/Extension History --------- Turn | Location | Event 18 | -11/Scrapyard | Discovered new exit (range 15) 69 | -11/Scrapyard | Entered Materials 121 | -10/Materials | Discovered new exit (range 16) 136 | -10/Materials | Entered another Materials area 136 | -9/Materials | Evolved 2 slots: Propulsion x1, Utility x1 314 | -9/Materials | Build established: Mutant 470 | -9/Materials | Discovered new exit (range 16) 572 | -9/Materials | Entered another Materials area 572 | -8/Materials | Evolved 2 slots: Propulsion x1, Weapon x1 1889 | -8/Materials | Build established: Scavenger-Mutant 1968 | -8/Materials | Core integrity fell below 50% 2063 | -8/Materials | Discovered new exit (range 15) 2081 | -8/Materials | Entered Factory 2081 | -7/Factory | Evolved 2 slots: Utility x1, Weapon x1 2116 | -7/Factory | Discovered new exit (range 3) 2120 | -7/Factory | Entered another Factory area 2120 | -6/Factory | Evolved 2 slots: Utility x2 2839 | -6/Factory | Discovered new exit (range 14) 2880 | -6/Factory | Entered another Factory area 2880 | -5/Factory | Evolved 2 slots: Power x1, Utility x1 3229 | -5/Factory | Lost 14 parts (1p5n3u5w) 3307 | -5/Factory | Core integrity fell below 50% 3567 | -5/Factory | Discovered new exit (range 13) 3582 | -5/Factory | Entered Extension 3604 | -5/Extension | Lost 8 parts (3n3u2w) 3621 | -5/Extension | Core integrity fell below 20% 3668 | -5/Extension | Energy Cycler disabled 3668 | -5/Extension | Rescued a captive Derelict 3668 | -5/Extension | Rescued a captive Derelict 3669 | -5/Extension | Rescued a captive Derelict 3669 | -5/Extension | Rescued a captive Derelict 3669 | -5/Extension | Rescued a captive Derelict 3670 | -5/Extension | Rescued a captive Derelict 3670 | -5/Extension | Rescued a captive Derelict 3671 | -5/Extension | Rescued a captive Derelict 3672 | -5/Extension | Rescued a captive Derelict 3677 | -5/Extension | Rescued a captive Derelict 3760 | -5/Extension | Destroyed by Y-64 Sentinel with KE Penetrator Last Messages --------------- 03677_ The unstable cave ceiling collapses. 03697_ Acquired Shock Absorption System. 03700_ Acquired Imp. Recalibrator. 03704_ ALERT: Hostiles spotted, dispatching reinforcements to Terminal E002. 03706_ U-05 Engineer lays Concrete. 03711_ Acquired Imp. Trap Scanner. 03713_ Slug penetrates T-07 Excavator. 03713_ T-07 Excavator destroyed. 03717_ Acquired 27 matter. 03721_ U-05 Engineer lays Concrete. 03752_ Gauss Rifle destroyed. 03752_ Penetrated by Slug. 03752_ Imp. Trap Scanner destroyed. 03754_ Penetrated by Slug. 03754_ Carbon-fiber Leg destroyed. 03757_ Penetrated by Slug. 03757_ Shock Absorption System destroyed. 03759_ Slug penetrates Y-64 Sentinel. 03760_ Penetrated by Slug. Map ----- +----------------------------------------------------+ | | | | | | | | | | | | | | | | | | | | | | | #????????????????????????????????????????????????? | | #????????????????????????????????????????????????? | | ####################?????????????????????????????? | | ????????????????????????????? | | ! ??????????????????????????????? | | ??????????????????????????????????? | | #?????????????????????????????????????? | | ! #?????????????????????????????????????? | | ###+####??????#####+#+#######?????????????? | | # #??????# #?????????????? | | + #??????# = / #?????????????? | | ### #??????# [ bl #?????????????? | | #?# #??????# Y bb #?????????????? | | #?# #??????# Y ] #?????????????? | | #?# #??????# @ #?????????????? | | " ################# #?????????????? | | # + #?????????????? | | ###################### #?????????????? | | ?????????????????????# #?????????????? | | ?????????????????????# #?????????????? | | ?????????????????????###############?????????????? | | ?????????????????????????????????????????????????? | | ?????????????????????????????????????????????????? | | ?????????????????????????????????????????????????? | | ?????????????????????????????????????????????????? | | ?????????????????????????????????????????????????? | | ?????????????????????????????????????????????????? | | ?????????????????????????????????????????????????? | | ?????????????????????????????????????????????????? | | ?????????????????????????????????????????????????? | | ?????????????????????????????????????????????????? | | ?????????????????????????????????????????????????? | | ?????????????????????????????????????????????????? | | ?????????????????????????????????????????????????? | | ?????????????????????????????????????????????????? | | ?????????????????????????????????????????????????? | | ?????????????????????????????????????????????????? | | ?????????????????????????????????????????????????? | | ?????????????????????????????????????????????????? | +----------------------------------------------------+ Best States ------------- Heat Dissipation 40 Energy Generation 18 Energy Capacity 310 Matter Stores 505 Matter Capacity 550 Sight Range 16 Terrain Scan Density 10 Armor Coverage 150 Evasion (%) 55 Targeting Accuracy 10 Core Analysis 6 Recoil Reduction 2 Item Schematics ----------------- None Robot Schematics ------------------ None Fabricated ------------ Nothing Alien Tech Used ----------------- None Achievements -------------- None Challenges ------------ None Game ------ Seed TransdimensionalDroneTorch Manual? 0 Play Time 00:43:42 Cumulative 33.9 hours Start 2022.08.01 @ 02:15:39 End 2022.08.01 @ 02:58:38 Sessions 1 Manual Loads 0 Difficulty Rogue Special Mode None Game No. 92 Rogue 92 Adventurer 0 Explorer 0 Win Type - Total 0 Types 0/0/0/0/0/0/0/0/0 Lore% 21 Gallery% 30 Achievement% 21 Wizard Run 0 Options --------- ASCII 0 Keyboard 0 Movement Mouse Keybinds 0 Fullscreen 1 Font 18/Terminus Map View 76x50 Tactical HUD 1 Map Filters NONE Filters NONE Steam 1 RUN: 0578416d-78b3-4607-bf31-822cdb99beda